Cogmind - Beta 13 @@@ ROGUE MODE // 2024.04.16 @ 21:58:48 Player: Zaros426 Result: Destroyed by 8R-AWN with 8R-AWN's Boregun Performance ------------- Evolutions (0) 0 Regions Visited (3) 600 Robots Destroyed (11) 55 Value Destroyed (117) 117 Prototype IDs (2) 40 Alien Tech Used (0) 0 Bonus (-713) -713 TOTAL SCORE: 99 Bonus ------- Friendly Fire -713 Cogmind --------- Core Integrity 0/250 Matter 249/300 Energy 86/100 System Corruption 0% Temperature Cool (0) Movement Core (50) Location -10/Exiles Parts ------- > --- POWER (1) -------- (None) > --- PROPULSION (2) --- (None) > --- UTILITY (2) ------ Improved Terrain Scanner > --- WEAPON (2) ------- (None) > --- INVENTORY (5) ---- Experimental Sensor Array Peak State ------------ > --- POWER ------------ Ion Engine > --- PROPULSION ------- Wheel Wheel > --- UTILITY ---------- Small Storage Unit Experimental Sensor Array > --- WEAPON ----------- Medium Laser Grenade Launcher > --- INVENTORY -------- Improved Terrain Scanner Seismic Detector Light Armor Plating Light Armor Plating Thief Drone Bay EM Pulse Gun [Rating: 16] Favorites ----------- Power Ion Engine Engine Ion Engine Propulsion Wheel Wheel Wheel Utility Seismic Detector Device Seismic Detector Storage Small Storage Unit Protection Light Armor Plating Weapon Grenade Launcher Energy Gun Medium Laser Launcher Grenade Launcher Build | -11 -10 -10 -10 ------- Run | Yrd Mat Min Exi Slots Evolved . | . . . . Power . | . . . . Propulsion . | . . . . Utility . | . . . . Weapon . | . . . . Parts Attached 19 | 8 1 4 6 Power 1 | 1 . . . Engine 1 | 1 . . . Core . | . . . . Reactor . | . . . . Propulsion 3 | 3 . . . Treads . | . . . . Leg . | . . . . Wheel 3 | 3 . . . Hover . | . . . . Flight . | . . . . Utility 11 | 2 . 4 5 Device 8 | 1 . 4 3 Storage 1 | 1 . . . Processor . | . . . . Hackware . | . . . . Protection 2 | . . . 2 Artifact . | . . . . Weapon 4 | 2 1 . 1 Energy Gun 3 | 2 . . 1 Energy Cannon . | . . . . Ballistic Gun . | . . . . Ballistic Cannon . | . . . . Launcher 1 | . 1 . . Special Weapon . | . . . . Impact Weapon . | . . . . Slashing Weapon . | . . . . Piercing Weapon . | . . . . Special Melee Weapon . | . . . . Unidentified Prototypes 2 | . . 2 . Parts Lost 8 | . . . 8 Power 1 | . . . 1 Propulsion 2 | . . . 2 Utility 3 | . . . 3 Weapon 2 | . . . 2 Highest Loss Streak 8 | . . . 8 To Critical Strikes . | . . . . Average Slot Usage (%) 97 | . 100 100 94 Engine 13 | . 14 14 13 Wheel 27 | . 28 28 26 Device 14 | . 14 14 14 Storage 11 | . 14 14 9 Protection 1 | . . . 3 Energy Gun 13 | . 15 14 13 Launcher 12 | . 12 14 12 Naked Turns 1 | . . . 1 Heaviest Build 19 | 15 16 19 16 Greatest Support 26 | 26 20 20 20 Greatest Overweight (x) . | . . . . Average Overweight (x) . | . . . . Largest Inventory Capacity 8 | 8 8 8 8 Average Capacity 7 | 7 8 8 6 Most Carried 8 | 1 4 6 8 Average Carried 4 | . 2 5 5 Final Capacity 8 | 8 8 8 5 Final Carried 6 | 1 4 6 1 Class Distribution -------------------- 100% | Mutant Dominant Class ---------------- Mutant | -10/Materials Mutant | -10/Mines Mutant | -10/Exiles Resources | -11 -10 -10 -10 ----------- Run | Yrd Mat Min Exi Matter Collected 342 | 279 . 25 38 Remotely . | . . . . Salvage Created 130 | 50 42 13 25 Parts 27 | 7 8 4 8 Haulers Intercepted . | . . . . Recyclers Shooed . | . . . . Parts Field Recycled . | . . . . Retrieved Matter . | . . . . Parts Self-Destructed . | . . . . Prevented . | . . . . Kills | -11 -10 -10 -10 ------- Run | Yrd Mat Min Exi Combat Hostiles Destroyed 6 | . 3 3 . Guns 1 | . 1 . . AOE 5 | . 2 3 . Classes Destroyed 3 | 1 2 . . Tunneler 3 | 3 . . . Watcher 1 | . 1 . . Swarmer 6 | . 3 3 . Best Kill Streak 4 | 2 4 3 . Combat Bots Only 3 | . 3 3 . Max Kills in Single Turn 3 | 1 3 2 1 Gunslinging . | . . . . Exploded 2 | . 2 2 . Melee . | . . . . Uniques/NPCs Destroyed 1 | . . . 1 EX-BIN (-10/Exiles) Combat | -11 -10 -10 -10 -------- Run | Yrd Mat Min Exi Hostile Shots Fired 49 | . 3 6 40 Missed 9 | . 1 1 7 Damage Taken 882 | . 19 48 815 Core 257 | . 10 9 238 Absorbed by Shields . | . . . . Core Remaining (%) 100 | 100 . . . Volleys Fired 40 | 8 4 4 24 Largest 1 | 1 1 1 1 Hottest 50 | 50 50 30 40 Shots Fired 40 | 8 4 4 24 Gun 35 | 8 3 . 24 Cannon . | . . . . Launcher 5 | . 1 4 . Special . | . . . . Kinetic . | . . . . Thermal 11 | 8 3 . . Explosive 5 | . 1 4 . Electromagnetic 24 | . . . 24 Robot Hit Streak 4 | 4 1 . 3 Robot Miss Streak 2 | 1 1 1 2 Penetration Max . | . . . . Secondary Targets . | . . . . Shots Hit Robots 13 | 7 2 . 4 Core Hits 13 | 3 4 4 2 Critical Kills . | . . . . Critical Parts Destroyed . | . . . . Critical Strikes . | . . . . Melee Attacks . | . . . . Impact . | . . . . Slashing . | . . . . Piercing . | . . . . Sneak Attacks . | . . . . Combat Hostiles . | . . . . Follow-up Attacks . | . . . . Damage Inflicted 480 | 88 176 109 107 Guns 147 | 88 25 . 34 Cannons . | . . . . Explosions 328 | . 151 109 68 Melee . | . . . . Ramming 5 | . . . 5 Kinetic . | . . . . Thermal 181 | 88 25 . 68 Explosive 260 | . 151 109 . Electromagnetic 34 | . . . 34 Impact . | . . . . Slashing . | . . . . Piercing . | . . . . Highest Corruption . | . . . . Average Corruption . | . . . . Corruption Purged . | . . . . Corruption Blocked . | . . . . Overload Shots . | . . . . Overflow Damage 5 | . . . 5 Projectiles . | . . . . Explosions 5 | . . . 5 Melee . | . . . . Knockbacks . | . . . . Impact . | . . . . Kinetic . | . . . . Secondary . | . . . . Self-Inflicted Damage 49 | . . . 49 Shots 1 | . . . 1 Rammed 2 | . . . 2 Targets Rammed 2 | . . . 2 Kicked . | . . . . Crushed . | . . . . Highest Temperature 102 | 80 20 . 102 Average Temperature 38 | 40 10 . 41 Received Heat Transfer . | . . . . Siege Activations . | . . . . Robots Corrupted . | . . . . Combat Hostiles . | . . . . Parts Fried . | . . . . Impact Corruptions . | . . . . Robots Melted . | . . . . Combat Hostiles . | . . . . Parts Melted . | . . . . Heat Transferred 333 | 259 74 . . Parts Sabotaged . | . . . . Parts Stolen . | . . . . Parts Stripped . | . . . . Power Chain Reactions 1 | . . . 1 Alert | -11 -10 -10 -10 ------- Run | Yrd Mat Min Exi Peak Influence 169 | 15 132 169 . Initial 51 | . 9 51 . Average 68 | 4 102 78 . Maximum Alert Level . | . . . . Low Security (%) 100 | 100 100 100 . Level 1 . | . . . . Level 2 . | . . . . Level 3 . | . . . . Level 4 . | . . . . Level 5 . | . . . . High Security . | . . . . Max Security . | . . . . Squads Dispatched 1 | . 1 . . Investigation . | . . . . Extermination . | . . . . Reinforcement 1 | . 1 . . Assault . | . . . . Garrison . | . . . . Intercept . | . . . . Searches Triggered . | . . . . Construction Impeded . | . . . . Haulers Reinforced . | . . . . Active Scanning Responses . | . . . . Cargo Convoy Interrupts . | . . . . Stealth | -11 -10 -10 -10 --------- Run | Yrd Mat Min Exi Distress Signals 1 | . 1 . . Communications Jammed . | . . . . Distress Signals . | . . . . Times Spotted 16 | . 5 3 8 Peak Tracking Total 9 | . 4 2 9 Tactical Retreats . | . . . . Traps | -11 -10 -10 -10 ------- Run | Yrd Mat Min Exi Traps Triggered . | . . . . Indirectly . | . . . . Trap Hack Attempts . | . . . . Triggered . | . . . . Disarmed . | . . . . Reprogrammed . | . . . . Reused . | . . . . Traps Extracted . | . . . . Installed . | . . . . Triggered . | . . . . Machines | -11 -10 -10 -10 ---------- Run | Yrd Mat Min Exi Machines Disabled 5 | . . 2 3 Max in Single Turn 1 | . . 1 1 Machines Repaired . | . . . . Machines Dismantled . | . . . . Machines Sabotaged . | . . . . Overloaded Fab Kills . | . . . . Hacking | -11 -10 -10 -10 --------- Run | Yrd Mat Min Exi Machines Accessed 3 | . 2 1 . Terminals 2 | . 2 . . Fabricators . | . . . . Repair Stations . | . . . . Recycling Units . | . . . . Scanalyzers . | . . . . Garrison Access . | . . . . Total Hacks 7 | . 6 1 . Successful 5 | . 4 1 . Failed 2 | . 2 . . Catastrophic . | . . . . Database Lockouts . | . . . . Manual 4 | . . 3 1 Terminals 6 | . 6 . . Fabricators . | . . . . Repair Stations . | . . . . Recycling Units . | . . . . Scanalyzers . | . . . . Garrison Access . | . . . . Terminal Hacks 5 | . 4 1 . Robot Analysis 1 | . 1 . . Open Door 1 | . . 1 . Locate Traps 1 | . 1 . . Recall Investigation 1 | . 1 . . Zone Layout 1 | . 1 . . Fabricator Hacks . | . . . . Repair Station Hacks . | . . . . Recycling Unit Hacks . | . . . . Scanalyzer . | . . . . Garrison Access Hacks . | . . . . Unauthorized Hacks . | . . . . Terminals . | . . . . Fabricators . | . . . . Repair Stations . | . . . . Recycling Units . | . . . . Scanalyzers . | . . . . Garrison Access . | . . . . Data Cores Recovered . | . . . . Used . | . . . . Hacking Detections 2 | . 2 . . Full Trace Events . | . . . . Feedback Events . | . . . . Feedback Blocked . | . . . . Robot Schematics Acquired . | . . . . Robots Built . | . . . . Authchips . | . . . . Time . | . . . . Total Robot Build Rating . | . . . . Part Schematics Acquired . | . . . . Parts Built . | . . . . Authchips . | . . . . Time . | . . . . Total Part Build Rating . | . . . . Parts Repaired . | . . . . Time . | . . . . Parts Recycled . | . . . . Recycled Matter . | . . . . Retrieved Matter . | . . . . Retrieved Components . | . . . . Parts Scanalyzed . | . . . . Part Schematics Acquired . | . . . . Parts Damaged . | . . . . Bothacking | -11 -10 -10 -10 ------------ Run | Yrd Mat Min Exi Used RIF Installer . | . . . . Robots Hacked . | . . . . Non-combat . | . . . . Combat . | . . . . Robot Hacks Applied . | . . . . Relay Couplers Released . | . . . . Fabnet Peak Effective % . | . . . . Robots Rewired . | . . . . Allies Hacked . | . . . . Hacks Repelled . | . . . . Allies | -11 -10 -10 -10 -------- Run | Yrd Mat Min Exi Total Allies . | . . . . Largest Group . | . . . . Highest-Rated Group . | . . . . Highest-Rated Ally . | . . . . Total Orders 2 | . . 1 1 ROAM 1 | . . . 1 RETURN 1 | . . 1 . Ally Attacks 15 | . . . 15 Total Damage 124 | . . . 124 Kills 1 | . . . 1 Allies Corrupted . | . . . . Allies Melted . | . . . . Intel | -11 -10 -10 -10 ------- Run | Yrd Mat Min Exi Robot Analysis Total 1 | . 1 . . Derelict Logs Recovered 2 | . . 2 . Drone Launches 6 | . . 3 3 Drone Recoveries 3 | . . 3 . Exploration | -11 -10 -10 -10 ------------- Run | Yrd Mat Min Exi Turns Passed 858 | 99 93 300 366 Spaces Moved 869 | 79 100 342 348 Core 2 | 2 . . . Treads . | . . . . Legs . | . . . . Wheels 867 | 77 100 342 348 Hover . | . . . . Flight . | . . . . Fastest Speed 50 | 50 80 80 80 Average Speed 80 | 84 80 80 80 Slowest Speed 100 | 100 80 80 80 Overloaded Moves . | . . . . Propulsion Burnouts . | . . . . Robots Hopped . | . . . . Cave-ins Triggered . | . . . . Exploration Rate (%) 33 | 4 19 70 41 Regions Visited 3 Branch Regions 2 Pre-discovered Areas 1 | . . 1 . Known Exits Taken . | . . . . Unknown Exits Taken 3 | 1 1 1 . Scrap Searched 1 | . . 1 . Spaces Dug . | . . . . Terrain Destroyed 30 | . 8 22 . Melee . | . . . . Projectile . | . . . . AOE 30 | . 8 22 . Terrain Rammed . | . . . . Walls Destroyed . | . . . . Machines Disabled . | . . . . Actions | -11 -10 -10 -10 --------- Run | Yrd Mat Min Exi Total 984 | 99 108 363 414 Wait 37 | 3 1 11 22 Move 866 | 78 99 341 348 Hop . | . . . . Pick Up 11 | 1 3 2 5 Fast Attach 7 | 7 . . . Attach 5 | . . 1 4 Detach 1 | . . 1 . Swap 7 | 1 1 3 2 Drop 8 | 1 . . 7 Fire 40 | 8 4 4 24 Melee . | . . . . Ram 2 | . . . 2 Kick . | . . . . Crush . | . . . . Escape Stasis . | . . . . Rewire . | . . . . Trap . | . . . . Miscellaneous . | . . . . Route ------- -11/Scrapyard -10/Materials -10/Mines (discovered 2 exits: [*Mat] / *Exi) -10/Exiles (discovered 2 exits: Min x2) History --------- Turn | Location | Event 14 | -11/Scrapyard | Discovered new exit (range 16) 100 | -11/Scrapyard | Entered Materials 148 | -10/Materials | Discovered new exit (range 15) 193 | -10/Materials | Entered Mines 196 | -10/Mines | Learned location of Storage (-9) 206 | -10/Mines | Found the Drone Emporium 210 | -10/Mines | Found Prototype Device 211 | -10/Mines | Identified Thief Drone Bay 244 | -10/Mines | Found a damaged Exp. Sensor Array with a note attached 246 | -10/Mines | Found Prototype Device 247 | -10/Mines | Identified Exp. Sensor Array 307 | -10/Mines | Build established: Mutant 342 | -10/Mines | Discovered new exit (range 7) 489 | -10/Mines | Deemed a non-threat by the Exiles lab entrance 490 | -10/Mines | Discovered new exit (range 5) 493 | -10/Mines | Entered Exiles 494 | -10/Exiles | Identified exit to Mines 517 | -10/Exiles | Met 8R-AWN 537 | -10/Exiles | Met EX-HEX 559 | -10/Exiles | Met EX-BIN 805 | -10/Exiles | Murdered EX-BIN 805 | -10/Exiles | Destroyed EX-BIN 806 | -10/Exiles | Attacked by the Exiles 839 | -10/Exiles | Core integrity fell below 50% 841 | -10/Exiles | Core integrity fell below 20% 859 | -10/Exiles | Destroyed by 8R-AWN with 8R-AWN's Boregun Last Messages --------------- 00850_ Thief Drone Bay severed. 00850_ >> Lost connection to Thief Drone. 00854_ HV Slug penetrates Thief Drone. 00854_ Thief Drone suffers critical hit (Destroy). 00854_ HV Slug penetrates BIN's Workstation. 00854_ HV Slug penetrates Thief Drone. 00854_ HV Slug penetrates BIN's Workstation. 00855_ as-07449 destroyed. 00856_ HV Slug penetrates Thief Drone. 00856_ Thief Drone suffers critical hit (Destroy). 00856_ HV Slug penetrates Wall. 00856_ HV Slug penetrates as-68219. 00856_ as-68219 destroyed. 00856_ HV Slug penetrates FarCom Aligner. 00857_ Lgt. Armor Plating destroyed. 00857_ Slammed into as-17261. 00859_ Acquired 13 matter. 00859_ HV Slug penetrates Thief Drone. 00859_ Thief Drone destroyed. 00859_ Penetrated by HV Slug. Map ----- +----------------------------------------------------+ | ????????????# #???####???????????????????????? | | ????????????# #??"""""???????????????????????? | | ????????????# ## """#??????????????????????? | | ????????????# X""#??????????????????????? | | ????????????# ## """#??????????????????????? | | ????######### #??"""""???????????????????????? | | ????#""""""## #???###????????????????????????? | | ????#"""" ## #??????????????????????????????? | | ????#""X"![ #??????????????????????????????? | | ????#" #??????????????????????????????? | | ????#" ## #??????????????????????????????? | | ????#""""""## #?#########????????????????????? | | ????##"###### #?#"""""""#????????????????????? | | ???? "?????# #?#"""""""#????????????????????? | | ???"""??????# #?#"""""""#????????????????????? | | ???????????## ###"" """"#????????????????????? | | ???????????#" """"#????????????????????? | | ???????????#" "#????????????????????? | | ???????????# "#????????????????????? | | ???????????#" = "#????????????????????? | | ???????????#" "#????????????????????? | | ???????????#" "##???????????????????? | | ???????????## """"""??????????????????? | | ????????????# ag% % ""######???????????????? | | ????????????#" n%n""""" #???????????????? | | ????????????#" " a@ !# "??????????????????? | | ????????????#" "" " "a #????????????????????? | | ???????????##" ###########????????????????????? | | ??????????##"" #??????????????????????????????? | | ?????????##"" #??????????????????????????????? | | ????????""""" ##?????????????????????????????? | | ??????"" " "" ##???###########??????????????? | | ??????"" " #####"""""""""##?????????????? | | ????? " " """ """"##????????????? | | ??? "" " #????????????? | | ??? " """#????????????? | | ???? " "#???????????## | | ???? " "##?????????##" | | ???? ""###???????#" | | ????? """""" """#??????##" | | ????? ######""" "#????### | | ??????""#?????#####""" ##???# | | ??????????????????##""" ##?## | | ???????????????????#"""" ### | | ???????????????????#"" * # | | ??????????????????#"""" ## | | ?????????????????"" ""#? | | ???????????????"" #"""##? | | ?????????????? ######?? | | ??????????????? ##??????? | +----------------------------------------------------+ Best States ------------- Heat Dissipation 25 Energy Generation 10 Energy Capacity 250 Matter Stores 299 Matter Capacity 300 Sight Range 16 Terrain Scan Density 10 Armor Coverage 150 Evasion (%) 44 Item Schematics ----------------- None Robot Schematics ------------------ None Fabricated ------------ Nothing Alien Tech Used ----------------- None Achievements -------------- None Challenges ------------ None Game ------ Seed KineticTractorMultirail Manual? 0 Play Time 00:14:21 Cumulative 48.2 hours Start 2024.04.16 @ 21:47:26 End 2024.04.16 @ 21:58:48 Sessions 1 Manual Loads 0 Difficulty Rogue Special Mode None Game No. 49 Rogue 49 Adventurer 0 Explorer 0 Win Type - Total 0 Types 0/0/0/0/0/0/0/0/0 Lore% 28 Gallery% 42 Achievement% 30 Wizard Run 0 Options --------- Layout 0 ASCII 0 Keyboard 0 Movement Mouse Keybinds 0 Fullscreen 2 Font 24/Smallcaps Map View 183x50 Zoom Use 0% Tactical HUD 1 Map Filters NONE Filters NONE Steam 0 RUN: 40b7b5b4-32a2-4540-b118-9aac063fbcc2